fUST/lending_fUST_20240205
["ID","MTS","AMOUNT","RATE_DAILY","PERIOD"]
[313269896,1707063041994,-500.0,0.00024931,2]
[313269898,1707063042003,-1155.27,0.00024931,2]
[313269900,1707063042012,-500.0,0.00024931,2]
[313269902,1707063042020,-514.69671884,0.00024931,2]
[313269904,1707063042029,-500.0,0.00024931,2]
[313269906,1707063042038,-500.0,0.00024931,2]
[313269908,1707063042047,-525.71,0.00024931,2]
[313269910,1707063042056,-3640.29,0.00024931,2]
[313269912,1707063042065,-303.99726441,0.00024931,2]
[313269914,1707063042073,-500.0,0.00024931,2]
[313269916,1707063042083,-500.0,0.00024931,2]
[313269918,1707063042092,-500.0,0.00024931,2]
[313269920,1707063042101,-500.0,0.00024931,2]
[313269922,1707063042110,-500.0,0.00024931,2]
[313269924,1707063042119,-500.0,0.00024931,2]
[313269926,1707063042128,-7018.05,0.00024931,2]
[313269928,1707063042137,-500.0,0.00024931,2]
[313269930,1707063042147,-500.0,0.00024931,2]
[313269932,1707063042156,-500.0,0.00024931,2]
[313269934,1707063042166,-500.0,0.00024931,2]
[313269935,1707063042175,-9326.48,0.00024931,2]
[313269937,1707063042185,-1179.74,0.00024931,2]
[313269939,1707063042195,-922.97,0.00024931,2]
[313269942,1707063042204,-500.0,0.00024931,2]
[313269943,1707063042213,-500.0,0.00024931,2]
[313269946,1707063042223,-152.72081213,0.00024932,2]
[313269948,1707063042237,-469.69677478,0.00024932,2]
[313269949,1707063042248,-702.40769524,0.00024932,2]
[313269952,1707063042258,-1000.0,0.00024932,3]
[313269954,1707063042267,-237.054,0.00024963,2]
[313269955,1707063042277,-237.054,0.00024963,2]
[313269958,1707063042286,-1831.07341754,0.00025,2]
[313269960,1707063042295,-534.83687431,0.00025,2]
[313269962,1707063042307,-2860.28688285,0.00025,2]
[313269964,1707063042316,-1088.13045983,0.00025,4]
[313269965,1707063042324,-4735.25519825,0.00025,2]
[313269968,1707063042335,-7141.15166325,0.00025,2]
[313269970,1707063042345,-200.90786963,0.00025,2]
[313269972,1707063042354,-825.01,0.00025,25]
[313269974,1707063042363,-4985.7,0.00025,2]
[313269975,1707063042372,-237.054,0.00025,2]
[313269977,1707063042381,-237.054,0.00025,2]
[313269979,1707063042391,-176.135036,0.00025,2]
[313269981,1707063042400,-620.0182694,0.00025117,2]
[313269983,1707063042409,-500.0,0.00025204,2]
[313269985,1707063042418,-584.501425,0.00025204,2]
[313269987,1707063042428,-470.80671474,0.00025204,2]
[313269990,1707063042438,-500.0,0.00025204,2]
[313269991,1707063042446,-500.0,0.00025204,2]
[313269993,1707063042455,-500.0,0.00025204,2]
[313269996,1707063042465,-500.0,0.00025204,2]
[313269998,1707063042474,-500.0,0.00025204,2]
[313269999,1707063042484,-500.61494459,0.00025204,2]
[313270001,1707063042492,-310.18428678,0.00025204,2]
[313270003,1707063042501,-286.45829967,0.00025204,2]
[313270005,1707063042510,-500.0,0.00025204,2]
[313270007,1707063042519,-500.0,0.00025204,2]
[313270009,1707063042528,-500.0,0.00025204,2]
[313270011,1707063042537,-500.0,0.00025204,2]
[313270013,1707063042546,-500.0,0.00025204,2]
[313270015,1707063042555,-500.0,0.00025204,2]
[313270017,1707063042564,-500.0,0.00025204,2]
[313270019,1707063042573,-500.0,0.00025204,2]
[313270021,1707063042584,-500.0,0.00025204,2]
[313270024,1707063042593,-500.0,0.00025204,2]
[313270025,1707063042603,-519.98445592,0.00025204,2]
[313270027,1707063042613,-500.0,0.00025204,2]
[313270029,1707063042621,-500.0,0.00025204,2]
[313270031,1707063042630,-500.0,0.00025204,2]
[313270033,1707063042640,-500.0,0.00025204,2]
[313270035,1707063042649,-500.0,0.00025204,2]
[313270037,1707063042659,-500.0,0.00025204,2]
[313270039,1707063042668,-500.0,0.00025204,2]
[313270041,1707063042677,-1118.44246498,0.00025204,2]
[313270044,1707063042687,-1118.44246498,0.00025204,2]
[313270046,1707063042696,-1118.44246498,0.00025204,2]
[313270048,1707063042705,-1118.44246498,0.00025204,2]
[313270050,1707063042714,-1118.44246498,0.00025204,2]
[313270052,1707063042723,-1118.44246498,0.00025204,2]
[313270054,1707063042732,-1118.44246498,0.00025204,2]
[313270056,1707063042740,-1118.44246498,0.00025204,2]
[313270058,1707063042749,-1118.44246498,0.00025204,2]
[313270060,1707063042758,-1118.44246498,0.00025204,2]
[313270062,1707063042768,-1118.44246498,0.00025204,2]
[313270063,1707063042777,-1118.44246495,0.00025204,2]
[313270065,1707063042785,-158.04551257,0.00025204,2]
[313270067,1707063042795,-248.31046705,0.00025204,2]
[313270070,1707063042804,-500.0,0.00025205,2]
[313270071,1707063042813,-500.0,0.00025205,2]
[313270073,1707063042823,-500.0,0.00025205,2]
[313270075,1707063042832,-500.0,0.00025205,2]
[313270077,1707063042842,-500.0,0.00025205,2]
[313270080,1707063042853,-500.0,0.00025205,2]
[313270081,1707063042863,-500.0,0.00025205,2]
[313270084,1707063042872,-1006.25,0.00025205,2]
[313270086,1707063042882,-500.0,0.00025205,2]
[313270088,1707063042891,-500.0,0.00025205,2]
[313270089,1707063042899,-500.0,0.00025205,2]
[313270091,1707063042908,-500.0,0.00025205,2]
[313270094,1707063042918,-500.0,0.00025205,2]
[313270095,1707063042927,-562.38481904,0.00025205,2]
[313270097,1707063042936,-500.0,0.00025205,2]
[313270099,1707063042944,-500.0,0.00025205,2]
[313270101,1707063042953,-500.0,0.00025205,2]
[313270103,1707063042962,-898.82,0.00025205,2]
[313270105,1707063042971,-264.12011937,0.00025205,2]
[313270108,1707063042980,-500.0,0.00025205,2]
[313270109,1707063042990,-500.0,0.00025205,2]
[313270111,1707063043000,-500.0,0.00025205,2]
[313270114,1707063043009,-1078.89,0.00025205,2]
[313270116,1707063043018,-500.0,0.00025205,2]
[313270118,1707063043028,-500.0,0.00025205,2]
[313270120,1707063043037,-500.0,0.00025205,2]
[313270122,1707063043046,-500.0,0.00025205,2]
[313270123,1707063043056,-500.0,0.00025205,2]
[313270126,1707063043066,-500.0,0.00025205,2]
[313270128,1707063043075,-500.0,0.00025205,2]
[313270131,1707063043085,-500.0,0.00025205,2]
[313270133,1707063043094,-500.0,0.00025205,2]
[313270134,1707063043102,-500.0,0.00025205,2]
[313270136,1707063043111,-500.0,0.00025205,2]
[313270139,1707063043120,-500.0,0.00025205,2]
[313270141,1707063043129,-500.0,0.00025205,2]
[313270144,1707063043138,-500.0,0.00025205,2]
[313270147,1707063043147,-474.5,0.00025205,2]
[313270150,1707063043156,-238.39963899,0.00025205,2]
[313270152,1707063043166,-500.0,0.00025205,2]
[313270154,1707063043174,-500.0,0.00025205,2]
[313270158,1707063043184,-500.0,0.00025205,2]
[313270160,1707063043193,-363.61053583,0.00025205,2]
[313270162,1707063043202,-500.0,0.00025205,2]
[313270164,1707063043212,-304.37699231,0.00025205,2]
[313270166,1707063043221,-579.91,0.00025205,2]
[313270168,1707063043234,-500.0,0.00025205,2]
[313270172,1707063043243,-500.0,0.00025205,2]
[313270175,1707063043253,-500.0,0.00025205,2]
[313270177,1707063043263,-500.0,0.00025205,2]
[313270180,1707063043272,-500.0,0.00025205,2]
[313270183,1707063043283,-500.0,0.00025205,2]
[313270185,1707063043292,-265.33849375,0.00025205,2]
[313270187,1707063043301,-500.0,0.00025205,2]
[313270189,1707063043312,-370.23000767,0.00025205,2]
[313270191,1707063043322,-500.0,0.00025205,2]
[313270192,1707063043332,-534.87751184,0.00025205,2]
[313270195,1707063043342,-500.0,0.00025205,2]
[313270197,1707063043352,-9887.99,0.00025205,2]
[313270198,1707063043361,-500.0,0.00025205,2]
[313270200,1707063043370,-2624.77,0.00025205,2]
[313270202,1707063043380,-500.0,0.00025205,2]
[313270203,1707063043389,-500.0,0.00025205,2]
[313270204,1707063043399,-500.0,0.00025205,2]
[313270205,1707063043408,-500.0,0.00025205,2]
[313270206,1707063043418,-3076.4,0.00025205,2]
[313270207,1707063043427,-500.0,0.00025205,2]
[313270208,1707063043437,-500.0,0.00025205,2]
[313270209,1707063043446,-500.0,0.00025205,2]
[313270210,1707063043456,-500.0,0.00025205,2]
[313270211,1707063043466,-157.87700474,0.00025205,2]
[313270212,1707063043475,-1510.04,0.00025205,2]
[313270214,1707063043485,-247.27742966,0.00025205,2]
[313270216,1707063043494,-1687.56,0.00025205,2]
[313270217,1707063043503,-500.0,0.00025205,2]
[313270219,1707063043512,-500.0,0.00025205,2]
[313270222,1707063043522,-500.0,0.00025205,2]
[313270223,1707063043533,-500.0,0.00025205,2]
[313270225,1707063043542,-500.0,0.00025205,2]
[313270228,1707063043552,-500.0,0.00025205,2]
[313270229,1707063043561,-500.0,0.00025205,2]
[313270232,1707063043571,-3138.42,0.00025205,2]
[313270233,1707063043580,-680.91,0.00025205,2]
[313270235,1707063043589,-500.0,0.00025205,2]
[313270245,1707063043667,-637.68,0.00025205,2]
[313270247,1707063043678,-4015.09,0.00025205,2]
[313270249,1707063043688,-1162.75,0.00025205,2]
[313270251,1707063043698,-500.0,0.00025205,2]
[313270253,1707063043707,-500.0,0.00025205,2]
[313270255,1707063043716,-826.52,0.00025205,2]
[313270257,1707063043725,-500.0,0.00025205,2]
[313270259,1707063043734,-500.0,0.00025205,2]
[313270261,1707063043743,-556.67,0.00025205,2]
[313270263,1707063043753,-802.29157591,0.00025205,2]
[313270265,1707063043762,-500.0,0.00025205,2]
[313270267,1707063043770,-1155.27,0.00025205,2]
[313270269,1707063043780,-500.0,0.00025205,2]
[313270271,1707063043789,-500.0,0.00025205,2]
[313270273,1707063043799,-506.86916246,0.00025205,2]
[313270275,1707063043808,-525.71,0.00025205,2]
[313270277,1707063043818,-3640.29,0.00025205,2]
[313270279,1707063043828,-500.0,0.00025205,2]
[313270281,1707063043836,-500.0,0.00025205,2]
[313270283,1707063043845,-500.0,0.00025205,2]
[313270285,1707063043855,-500.0,0.00025205,2]
[313270287,1707063043864,-500.0,0.00025205,2]
[313270289,1707063043873,-500.0,0.00025205,2]
[313270291,1707063043882,-7018.05,0.00025205,2]
[313270293,1707063043891,-500.0,0.00025205,2]
[313270295,1707063043900,-500.0,0.00025205,2]
[313270297,1707063043909,-500.0,0.00025205,2]
[313270299,1707063043918,-500.0,0.00025205,2]
[313270301,1707063043927,-9326.48,0.00025205,2]
[313270303,1707063043938,-1179.74,0.00025205,2]
[313270305,1707063043947,-922.97,0.00025205,2]
[313270307,1707063043955,-500.0,0.00025205,2]
[313270308,1707063043965,-500.0,0.00025205,2]
[313270311,1707063043976,-220.03198858,0.00025479,2]
[313270312,1707063043985,-500.0,0.00025479,2]
[313270314,1707063043994,-500.0,0.00025479,2]
[313270317,1707063044005,-500.0,0.00025479,2]
[313270319,1707063044015,-501.12973816,0.00025479,2]
[313270320,1707063044025,-500.0,0.00025479,2]
[313270323,1707063044035,-1006.25,0.00025479,2]
[313270325,1707063044046,-500.0,0.00025479,2]
[313270327,1707063044055,-500.0,0.00025479,2]
[313270329,1707063044065,-500.0,0.00025479,2]
[313270331,1707063044074,-500.0,0.00025479,2]
[313270333,1707063044083,-601.43754394,0.00025479,2]
[313270335,1707063044092,-500.0,0.00025479,2]
[313270337,1707063044102,-500.0,0.00025479,2]
[313270339,1707063044111,-898.82,0.00025479,2]
[313270341,1707063044120,-500.07163114,0.00025479,2]
[313270342,1707063044129,-500.0,0.00025479,2]
[313270345,1707063044138,-500.0,0.00025479,2]
[313270346,1707063044148,-1078.89,0.00025479,2]
[313270349,1707063044157,-500.0,0.00025479,2]
[313270350,1707063044167,-500.0,0.00025479,2]
[313270352,1707063044176,-500.0,0.00025479,2]
[313270354,1707063044187,-500.0,0.00025479,2]
[313270357,1707063044196,-500.0,0.00025479,2]
[313270358,1707063044205,-500.0,0.00025479,2]
[313270361,1707063044215,-500.0,0.00025479,2]
[313270363,1707063044225,-500.0,0.00025479,2]
[313270365,1707063044238,-500.0,0.00025479,2]
[313270367,1707063044247,-500.0,0.00025479,2]
[313270369,1707063044257,-500.0,0.00025479,2]
[313270370,1707063044266,-500.0,0.00025479,2]
[313270372,1707063044277,-500.0,0.00025479,2]
[313270374,1707063044286,-500.0,0.00025479,2]
[313270376,1707063044296,-500.0,0.00025479,2]
[313270379,1707063044305,-500.0,0.00025479,2]
[313270381,1707063044316,-579.91,0.00025479,2]
[313270382,1707063044325,-500.0,0.00025479,2]
[313270384,1707063044334,-500.0,0.00025479,2]
[313270386,1707063044344,-500.0,0.00025479,2]
[313270388,1707063044353,-500.0,0.00025479,2]
[313270390,1707063044362,-500.0,0.00025479,2]
[313270392,1707063044371,-500.0,0.00025479,2]
[313270394,1707063044381,-500.0,0.00025479,2]
[313270396,1707063044390,-500.0,0.00025479,2]
[313270399,1707063044400,-500.0,0.00025479,2]
[313270400,1707063044409,-9887.99,0.00025479,2]
[313270402,1707063044418,-500.0,0.00025479,2]
[313270404,1707063044427,-2624.77,0.00025479,2]
[313270406,1707063044438,-500.0,0.00025479,2]
[313270408,1707063044447,-500.0,0.00025479,2]
[313270410,1707063044458,-500.0,0.00025479,2]
[313270412,1707063044467,-500.0,0.00025479,2]
[313270414,1707063044476,-3076.4,0.00025479,2]
[313270416,1707063044485,-500.0,0.00025479,2]
[313270418,1707063044494,-500.0,0.00025479,2]
[313270420,1707063044503,-500.0,0.00025479,2]
[313270422,1707063044513,-500.0,0.00025479,2]
[313270424,1707063044522,-1510.04,0.00025479,2]
[313270426,1707063044532,-1687.56,0.00025479,2]
[313270428,1707063044541,-500.0,0.00025479,2]
[313270430,1707063044550,-500.0,0.00025479,2]
[313270432,1707063044560,-500.0,0.00025479,2]
[313270434,1707063044569,-500.0,0.00025479,2]
[313270436,1707063044578,-500.0,0.00025479,2]
[313270438,1707063044587,-500.0,0.00025479,2]
[313270440,1707063044596,-3138.42,0.00025479,2]
[313270442,1707063044606,-680.91,0.00025479,2]
[313270444,1707063044615,-500.0,0.00025479,2]
[313270446,1707063044624,-637.68,0.00025479,2]
[313270448,1707063044633,-4015.09,0.00025479,2]
[313270450,1707063044642,-1162.75,0.00025479,2]
[313270452,1707063044651,-500.0,0.00025479,2]
[313270454,1707063044660,-500.0,0.00025479,2]
[313270456,1707063044669,-826.52,0.00025479,2]
[313270458,1707063044679,-500.0,0.00025479,2]
[313270460,1707063044689,-500.0,0.00025479,2]
[313270462,1707063044698,-556.67,0.00025479,2]
[313270464,1707063044707,-500.0,0.00025479,2]
[313270466,1707063044716,-1155.27,0.00025479,2]
[313270468,1707063044725,-500.0,0.00025479,2]
[313270470,1707063044734,-500.0,0.00025479,2]
[313270472,1707063044743,-525.71,0.00025479,2]
[313270474,1707063044752,-3640.29,0.00025479,2]
[313270476,1707063044762,-500.0,0.00025479,2]
[313270478,1707063044771,-500.0,0.00025479,2]
[313270480,1707063044780,-500.0,0.00025479,2]
[313270482,1707063044789,-500.0,0.00025479,2]
[313270484,1707063044799,-500.0,0.00025479,2]
[313270486,1707063044810,-500.0,0.00025479,2]
[313270488,1707063044820,-7018.05,0.00025479,2]
[313270490,1707063044830,-500.0,0.00025479,2]
[313270492,1707063044839,-500.0,0.00025479,2]
[313270494,1707063044848,-500.0,0.00025479,2]
[313270496,1707063044857,-599.14,0.00025479,2]
[313270498,1707063044866,-9326.48,0.00025479,2]
[313270500,1707063044875,-1179.74,0.00025479,2]
[313270502,1707063044885,-922.97,0.00025479,2]
[313270504,1707063044894,-200.0,0.00025479,2]
[313270506,1707063044903,-151.0,0.00025731,2]
[313270508,1707063044912,-500.0,0.00025753,2]
[313270510,1707063044921,-500.0,0.00025753,2]
[313270512,1707063044930,-500.0,0.00025753,2]
[313270514,1707063044939,-500.0,0.00025753,2]
[313270516,1707063044948,-1006.25,0.00025753,2]
[313270518,1707063044956,-172.86629236,0.00025753,2]
[313270520,1707063044966,-500.0,0.00025753,2]
[313270522,1707063044976,-500.0,0.00025753,2]
[313270524,1707063044985,-500.0,0.00025753,2]
[313270526,1707063044996,-513.66141901,0.00025753,2]
[313270528,1707063045005,-500.0,0.00025753,2]
[313270530,1707063045014,-898.82,0.00025753,2]
[313270532,1707063045023,-500.0,0.00025753,2]
[313270534,1707063045032,-500.0,0.00025753,2]
[313270536,1707063045040,-1078.89,0.00025753,2]
[313270538,1707063045049,-500.0,0.00025753,2]
[313270540,1707063045058,-500.0,0.00025753,2]
[313270542,1707063045067,-500.0,0.00025753,2]
[313270544,1707063045076,-500.0,0.00025753,2]
[313270546,1707063045085,-318.48602145,0.00025753,2]
[313270548,1707063045094,-500.0,0.00025753,2]
[313270550,1707063045104,-500.0,0.00025753,2]
[313270552,1707063045113,-500.0,0.00025753,2]
[313270554,1707063045122,-305.18971501,0.00025753,2]
[313270556,1707063045131,-500.0,0.00025753,2]
[313270558,1707063045141,-500.0,0.00025753,2]
[313270560,1707063045150,-500.0,0.00025753,2]
[313270562,1707063045160,-500.0,0.00025753,2]
[313270564,1707063045169,-500.0,0.00025753,2]
[313270566,1707063045178,-500.0,0.00025753,2]
[313270568,1707063045188,-579.91,0.00025753,2]
[313270570,1707063045196,-500.0,0.00025753,2]
[313270572,1707063045205,-500.0,0.00025753,2]
[313270574,1707063045215,-465.23113602,0.00025753,2]
[313270576,1707063045224,-500.0,0.00025753,2]
[313270578,1707063045236,-500.0,0.00025753,2]
[313270580,1707063045245,-500.0,0.00025753,2]
[313270582,1707063045253,-500.0,0.00025753,2]
[313270584,1707063045262,-500.0,0.00025753,2]
[313270586,1707063045272,-500.0,0.00025753,2]
[313270588,1707063045281,-9887.99,0.00025753,2]
[313270590,1707063045290,-500.0,0.00025753,2]
[313270592,1707063045299,-2624.77,0.00025753,2]
[313270594,1707063045309,-500.0,0.00025753,2]
[313270596,1707063045319,-500.0,0.00025753,2]
[313270597,1707063045329,-500.0,0.00025753,2]
[313270599,1707063045338,-500.0,0.00025753,2]
[313270601,1707063045347,-3076.4,0.00025753,2]
[313270611,1707063045424,-500.0,0.00025753,2]
[313270613,1707063045434,-500.0,0.00025753,2]
[313270615,1707063045443,-500.0,0.00025753,2]
[313270617,1707063045452,-500.0,0.00025753,2]
[313270619,1707063045462,-1510.04,0.00025753,2]
[313270621,1707063045471,-1687.56,0.00025753,2]
[313270623,1707063045481,-500.0,0.00025753,2]
[313270625,1707063045490,-500.0,0.00025753,2]
[313270627,1707063045499,-500.0,0.00025753,2]
[313270629,1707063045508,-500.0,0.00025753,2]
[313270631,1707063045517,-500.0,0.00025753,2]
[313270633,1707063045526,-500.0,0.00025753,2]
[313270635,1707063045535,-3138.42,0.00025753,2]
[313270637,1707063045544,-680.91,0.00025753,2]
[313270640,1707063045554,-500.0,0.00025753,2]
[313270641,1707063045563,-637.68,0.00025753,2]
[313270644,1707063045573,-4015.09,0.00025753,2]
[313270645,1707063045582,-1162.75,0.00025753,2]
[313270648,1707063045591,-500.0,0.00025753,2]
[313270650,1707063045600,-500.0,0.00025753,2]
[313270651,1707063045609,-826.52,0.00025753,2]
[313270653,1707063045619,-500.0,0.00025753,2]
[313270656,1707063045628,-500.0,0.00025753,2]
[313270658,1707063045637,-556.67,0.00025753,2]
[313270660,1707063045647,-500.0,0.00025753,2]
[313270662,1707063045656,-1155.27,0.00025753,2]
[313270664,1707063045665,-500.0,0.00025753,2]
[313270666,1707063045674,-500.0,0.00025753,2]
[313270668,1707063045684,-525.71,0.00025753,2]
[313270670,1707063045694,-3640.29,0.00025753,2]
[313270672,1707063045703,-500.0,0.00025753,2]
[313270674,1707063045712,-500.0,0.00025753,2]
[313270675,1707063045721,-500.0,0.00025753,2]
[313270676,1707063045730,-500.0,0.00025753,2]
[313270677,1707063045738,-500.0,0.00025753,2]
[313270678,1707063045747,-500.0,0.00025753,2]
[313270679,1707063045756,-7018.05,0.00025753,2]
[313270680,1707063045764,-486.83043532,0.00025753,2]
[313270681,1707063045773,-500.0,0.00025753,2]
[313270682,1707063045782,-500.0,0.00025753,2]
[313270683,1707063045791,-9326.48,0.00025753,2]
[313270684,1707063045799,-1179.74,0.00025753,2]
[313270685,1707063045808,-922.97,0.00025753,2]
[313270686,1707063045817,-300.0,0.000258,12]
[313270688,1707063045825,-500.0,0.00026,2]
[313270690,1707063045836,-500.0,0.00026027,2]
[313270692,1707063045845,-500.0,0.00026027,2]
[313270694,1707063045854,-500.0,0.00026027,2]
[313270696,1707063045863,-500.0,0.00026027,2]
[313270698,1707063045872,-1006.25,0.00026027,2]
[313270700,1707063045881,-500.0,0.00026027,2]
[313270702,1707063045890,-500.0,0.00026027,2]
[313270704,1707063045899,-500.0,0.00026027,2]
[313270706,1707063045908,-500.0,0.00026027,2]
[313270708,1707063045917,-898.82,0.00026027,2]
[313270710,1707063045926,-426.67943887,0.00026027,2]
[313270712,1707063045935,-544.59580033,0.00026027,2]
[313270714,1707063045944,-1078.89,0.00026027,2]
[313270716,1707063045952,-500.0,0.00026027,2]
[313270717,1707063045961,-325.74933732,0.00026027,2]
[313270720,1707063045971,-500.0,0.00026027,2]
[313270722,1707063045979,-500.0,0.00026027,2]
[313270723,1707063045988,-500.0,0.00026027,2]
[313270725,1707063045998,-500.0,0.00026027,2]
[313270727,1707063046007,-500.0,0.00026027,2]
[313270729,1707063046017,-500.0,0.00026027,2]
[313270731,1707063046026,-500.0,0.00026027,2]
[313270734,1707063046035,-500.0,0.00026027,2]
[313270735,1707063046044,-500.0,0.00026027,2]
[313270738,1707063046054,-500.0,0.00026027,2]
[313270740,1707063046063,-579.91,0.00026027,2]
[313270742,1707063046072,-500.0,0.00026027,2]
[313270744,1707063046081,-500.0,0.00026027,2]
[313270746,1707063046090,-500.0,0.00026027,2]
[313270748,1707063046099,-500.0,0.00026027,2]
[313270750,1707063046108,-500.0,0.00026027,2]
[313270753,1707063046117,-500.0,0.00026027,2]
[313270756,1707063046126,-500.0,0.00026027,2]
[313270759,1707063046135,-500.0,0.00026027,2]
[313270761,1707063046145,-9887.99,0.00026027,2]
[313270764,1707063046153,-500.0,0.00026027,2]
[313270766,1707063046162,-2624.77,0.00026027,2]
[313270769,1707063046171,-500.0,0.00026027,2]
[313270772,1707063046180,-500.0,0.00026027,2]
[313270774,1707063046190,-500.0,0.00026027,2]
[313270778,1707063046199,-632.94909225,0.00026027,2]
[313270781,1707063046208,-3076.4,0.00026027,2]
[313270784,1707063046217,-500.0,0.00026027,2]
[313270786,1707063046226,-500.0,0.00026027,2]
[313270788,1707063046239,-500.0,0.00026027,2]
[313270791,1707063046248,-500.0,0.00026027,2]
[313270794,1707063046257,-1510.04,0.00026027,2]
[313270797,1707063046266,-1687.56,0.00026027,2]
[313270800,1707063046277,-500.0,0.00026027,2]
[313270803,1707063046287,-500.0,0.00026027,2]
[313270808,1707063046296,-500.0,0.00026027,2]
[313270813,1707063046305,-500.0,0.00026027,2]
[313270815,1707063046316,-500.0,0.00026027,2]
[313270820,1707063046326,-500.0,0.00026027,2]
[313270824,1707063046335,-3138.42,0.00026027,2]
[313270828,1707063046345,-680.91,0.00026027,2]
[313270832,1707063046354,-500.0,0.00026027,2]
[313270835,1707063046362,-637.68,0.00026027,2]
[313270838,1707063046371,-4015.09,0.00026027,2]
[313270843,1707063046381,-1162.75,0.00026027,2]
[313270847,1707063046390,-500.0,0.00026027,2]
[313270850,1707063046400,-500.0,0.00026027,2]
[313270854,1707063046410,-826.52,0.00026027,2]
[313270856,1707063046419,-376.82205216,0.00026027,2]
[313270859,1707063046428,-500.0,0.00026027,2]
[313270862,1707063046437,-556.67,0.00026027,2]
[313270865,1707063046446,-500.0,0.00026027,2]
[313270869,1707063046455,-1155.27,0.00026027,2]
[313270871,1707063046464,-500.0,0.00026027,2]
[313270874,1707063046474,-500.0,0.00026027,2]
[313270876,1707063046483,-525.71,0.00026027,2]
[313270878,1707063046492,-3640.29,0.00026027,2]
[313270880,1707063046502,-500.0,0.00026027,2]
[313270883,1707063046511,-575.10908634,0.00026027,2]
[313270886,1707063046520,-500.0,0.00026027,2]
[313270889,1707063046529,-500.0,0.00026027,2]
[313270892,1707063046538,-500.0,0.00026027,2]
[313270894,1707063046547,-500.0,0.00026027,2]
[313270898,1707063046556,-7018.05,0.00026027,2]
[313270900,1707063046565,-500.0,0.00026027,2]
[313270903,1707063046575,-500.0,0.00026027,2]
[313270908,1707063046585,-9326.48,0.00026027,2]
[313270911,1707063046595,-1179.74,0.00026027,2]
[313270913,1707063046604,-922.97,0.00026027,2]
[313270916,1707063046613,-391.0,0.00026114,7]
[313270918,1707063046622,-500.0,0.00026301,2]
[313270920,1707063046632,-500.0,0.00026301,2]
[313270922,1707063046641,-500.0,0.00026301,2]
[313270925,1707063046651,-500.0,0.00026301,2]
[313270926,1707063046660,-1006.25,0.00026301,2]
[313270928,1707063046670,-500.0,0.00026301,2]
[313270930,1707063046679,-500.0,0.00026301,2]
[313270932,1707063046688,-500.0,0.00026301,2]
[313270934,1707063046697,-500.0,0.00026301,2]
[313270936,1707063046708,-898.82,0.00026301,2]
[313270938,1707063046717,-1078.89,0.00026301,2]
[313270940,1707063046726,-500.0,0.00026301,2]
[313270942,1707063046735,-500.0,0.00026301,2]
[313270944,1707063046743,-500.0,0.00026301,2]
[313270946,1707063046752,-500.0,0.00026301,2]
[313270948,1707063046761,-500.0,0.00026301,2]
[313270950,1707063046770,-500.0,0.00026301,2]
[313270952,1707063046779,-179.0,0.00026301,2]
[313270954,1707063046788,-500.0,0.00026301,2]